bitfinex/quotes_ETHUSD_20250620
["timestamp","ask_amount","ask_price","bid_price","bid_amount"]
[1750441500065,0.0621,2412.6,2412.1,4.1457651]
[1750441500267,0.0621,2412.6,2411.3,0.6482]
[1750441500268,0.55,2412.6,2411.6,4.14660033]
[1750441500482,0.55,2412.6,2411.3,0.6482]
[1750441500483,10.0,2412.7,2411.4,4.14695838]
[1750441500686,2.0623,2412.5,2411.3,0.6482]
[1750441501000,1.4502,2411.7,2410.9,4.14770655]
[1750441501198,1.4502,2411.7,2410.7,4.14817272]
[1750441501504,1.4502,2411.7,2410.5,4.796591]
[1750441501795,4.1472376,2411.3,2410.6,0.34629661]
[1750441502001,10.6121,2410.9,2410.6,0.34629661]
[1750441502171,0.0621,2411.7,2410.6,0.34629661]
[1750441502372,0.0621,2411.9,2410.7,0.04148126]
[1750441502685,1.4502,2411.1,2408.5,1.245896]
[1750441502884,10.0,2408.9,2408.2,4.15234632]
[1750441503073,10.0,2408.9,2407.3,1.40360729]
[1750441503272,2.17717443,2408.8,2408.2,4.15231541]
[1750441503473,1.4502,2409.1,2408.1,0.0233]
[1750441503673,1.4502,2409.9,2408.6,10.0]
[1750441503885,1.24522664,2409.2,2409.1,4.15092773]
[1750441504072,1.24522664,2409.2,2409.1,4.98112981]
[1750441504601,1.24522664,2409.2,2409.1,4.15092773]
[1750441504775,1.24522664,2409.2,2409.0,4.15106213]
[1750441505185,0.35031257,2409.1,2409.0,4.15106213]
[1750441505567,0.35031257,2409.1,2408.9,4.15115554]
[1750441505920,0.35031257,2409.1,2408.7,4.15149136]
[1750441505921,0.35031257,2409.1,2408.4,4.15201805]
[1750441506097,1.5343,2410.4,2409.1,4.15092773]
[1750441506262,0.0621,2410.3,2409.9,4.1495125]
[1750441506461,1.5343,2410.4,2410.0,0.04149629]
[1750441506675,1.5343,2410.4,2409.3,4.15053745]
[1750441506676,0.0621,2410.3,2409.3,4.15058315]
[1750441506887,0.0621,2410.3,2410.0,4.14928092]
[1750441507201,0.0621,2410.2,2409.5,4.15015624]
[1750441507400,0.0621,2410.2,2410.0,4.14924477]
[1750441507570,0.0621,2410.2,2410.0,4.14935908]
[1750441507769,0.0621,2410.3,2410.0,4.14935908]
[1750441507970,0.0621,2410.2,2410.0,4.14935908]
[1750441508216,10.0,2410.2,2409.9,4.14942348]
[1750441508513,10.0,2410.2,2408.8,26.56738587]
[1750441508514,0.6121,2410.1,2408.8,26.56738587]
[1750441508715,0.0621,2410.1,2410.0,4.14937759]
[1750441508871,1.5343,2410.4,2408.9,10.9945]
[1750441509070,1.5343,2410.4,2409.5,4.15023863]
[1750441509269,1.5343,2410.4,2410.3,4.14886113]
[1750441509520,1.4477,2410.8,2410.5,4.1485169]
[1750441509674,1.4477,2410.8,2410.4,4.14863555]
[1750441509867,4.14699412,2411.4,2410.4,4.14863555]
[1750441509868,1.5261,2411.8,2411.7,4.1464527]
[1750441510102,10.376,2413.3,2410.5,0.04148617]
[1750441510103,1.7414478,2412.8,2411.5,10.0]
[1750441510287,1.7414478,2412.8,2412.7,4.14473411]
[1750441510522,0.2203478,2412.8,2412.7,4.14473411]
[1750441510685,0.2203478,2412.8,2412.7,4.18618066]
[1750441510919,0.2203478,2412.8,2412.7,14.18618066]
[1750441511068,1.5211,2414.0,2413.9,4.14267368]
[1750441511581,1.5832,2414.0,2413.9,4.14267368]
[1750441511805,1.5211,2414.0,2413.9,4.14267368]
[1750441512388,1.5211,2414.0,2413.8,4.14283308]
[1750441512389,1.4133,2414.5,2414.4,4.14181577]
[1750441512602,0.0621,2415.0,2414.4,4.14181577]
[1750441512816,0.28766441,2414.8,2414.2,4.14202114]
[1750441513037,0.2203478,2415.2,2414.7,1.4608]
[1750441513201,0.1970478,2415.2,2415.1,14.16391529]
[1750441513414,5.56531704,2416.5,2416.4,4.13838768]
[1750441513922,0.66666667,2416.8,2416.5,2.0108]
[1750441514121,0.2203478,2417.6,2417.5,4.13650465]
[1750441514418,0.2203478,2417.6,2417.5,14.13650465]
[1750441514623,0.2203478,2417.6,2417.5,24.49750465]
[1750441514807,0.2203478,2417.6,2417.5,4.13150465]
[1750441514990,0.2203478,2417.6,2417.5,4.17286142]
[1750441515610,0.2203478,2417.6,2417.5,4.51816963]
[1750441515809,0.0621,2419.6,2417.5,1.17537358]
[1750441516041,0.0621,2419.2,2417.7,4.13616246]
[1750441516353,0.40583493,2420.2,2417.6,12.339]
[1750441516354,1.4364,2419.1,2418.0,10.0]
[1750441516514,7.58231291,2419.7,2418.1,4.52198779]
[1750441516711,6.14591291,2419.7,2419.6,4.13291453]
[1750441517738,6.32211841,2419.7,2419.6,4.13291453]
[1750441518297,6.32211841,2419.7,2419.6,27.69382632]
[1750441518525,6.32211841,2419.7,2419.6,5.37282632]
[1750441518842,6.32211841,2419.7,2419.6,4.63291453]
[1750441519039,6.32211841,2419.7,2419.6,4.13291453]
[1750441519243,6.32211841,2419.7,2419.6,4.17423833]
[1750441519439,6.32211841,2419.7,2419.6,4.13291453]
[1750441520029,6.32211841,2419.7,2419.6,16.44891453]
[1750441520233,6.32211841,2419.7,2419.6,14.13291453]
[1750441520432,6.32211841,2419.7,2419.4,4.13309487]
[1750441520644,6.32211841,2419.7,2419.6,4.13291453]
[1750441521001,6.32211841,2419.7,2419.6,4.47792304]
[1750441521348,7.99331085,2421.4,2419.7,10.0]
[1750441521497,0.0621,2421.3,2419.9,10.0]
[1750441521698,6.43621085,2421.4,2420.0,0.55]
[1750441521899,6.43621085,2421.4,2421.3,4.1300128]
[1750441522198,6.43621085,2421.4,2421.0,12.301]
[1750441522421,6.43621085,2421.4,2421.3,14.1300128]
[1750441522599,6.43621085,2421.4,2421.3,4.1300128]
[1750441523045,6.43621085,2421.4,2421.2,4.13017933]
[1750441523207,6.43621085,2421.4,2421.3,14.1300128]
[1750441523410,6.43621085,2421.4,2421.2,4.13006515]
[1750441523613,6.43621085,2421.4,2421.3,4.1300128]
[1750441524027,6.43621085,2421.4,2421.3,14.1300128]
[1750441524232,6.43621085,2421.4,2421.1,22.286]
[1750441524556,6.43621085,2421.4,2421.3,14.1300128]
[1750441524844,6.43621085,2421.4,2421.3,26.4150128]
[1750441525003,5.27970421,2421.4,2421.3,14.1300128]
[1750441525532,5.27970421,2421.4,2421.0,10.35]
[1750441525734,5.27970421,2421.4,2420.4,1.4633]
[1750441525735,5.80767463,2421.4,2420.4,1.4633]
[1750441525910,5.86547463,2421.4,2420.3,12.282]
[1750441526112,5.27970421,2421.4,2421.3,4.1300128]
[1750441527133,5.27970421,2421.4,2421.3,16.4030128]
[1750441527337,5.27970421,2421.4,2420.3,4.83161263]
[1750441527506,5.27970421,2421.4,2420.5,4.13137781]
[1750441527705,5.33750421,2421.4,2420.8,4.13084979]
[1750441527944,5.33750421,2421.4,2420.4,12.271]
[1750441527945,10.0,2421.3,2420.4,12.271]
[1750441528241,1.5553,2421.2,2420.3,4.13159707]
[1750441528546,5.27970421,2421.4,2421.1,4.13025964]
[1750441528714,5.27970421,2421.4,2421.3,4.1300128]
[1750441528916,5.27970421,2421.4,2421.0,4.1303823]
[1750441529131,5.27970421,2421.4,2420.9,12.267]
[1750441529338,16.33756359,2421.2,2420.1,0.34493723]
[1750441529652,10.0,2420.7,2419.3,12.265]
[1750441529863,1.6175,2421.1,2420.5,4.13129257]
[1750441530149,1.6175,2421.1,2419.2,1.4633]
[1750441530150,4.18910505,2420.6,2419.9,4.13230872]
[1750441530356,0.0578,2420.6,2419.4,4.17449249]
[1750441530536,0.0578,2420.6,2420.0,4.13213284]
[1750441530702,0.0578,2420.6,2418.4,1.4633]
[1750441530703,0.0578,2420.2,2418.4,1.4633]
[1750441530906,10.0578,2419.8,2418.1,10.336]
[1750441531148,0.0578,2419.8,2418.2,0.04133445]
[1750441531354,10.0578,2420.0,2418.2,10.04133445]
[1750441531533,4.18978274,2420.2,2418.6,4.13445798]
[1750441531740,0.0578,2420.0,2418.7,0.45477356]
[1750441531965,0.0578,2420.0,2419.1,4.13365145]
[1750441531966,0.0578,2419.8,2419.1,4.13365145]
[1750441532249,0.0578,2419.8,2418.1,14.47139445]
[1750441532250,0.0578,2419.4,2419.2,4.13353802]
[1750441532461,0.0578,2419.8,2419.0,0.04133343]
[1750441532610,10.0,2419.5,2419.0,4.13379868]
[1750441532963,1.4509,2419.4,2418.7,0.04133802]
[1750441533257,0.0578,2419.3,2418.5,4.13468]
[1750441533407,1.4509,2419.4,2418.4,4.13494562]
[1750441533408,1.5087,2419.4,2418.4,4.13494562]
[1750441533601,0.0578,2419.2,2418.1,10.336]
[1750441533858,0.0578,2419.2,2418.2,4.13530725]
[1750441534012,0.0578,2419.2,2418.3,4.13513625]
[1750441534212,0.0578,2419.2,2419.1,4.13376875]
[1750441534523,0.0578,2419.2,2418.6,4.13462333]
[1750441534847,4.19131576,2419.3,2418.8,4.13424126]
[1750441535023,0.0578,2419.3,2418.4,4.13496526]
[1750441535225,0.0578,2419.3,2418.5,0.04133992]
[1750441535409,1.4509,2419.4,2419.3,4.13342702]
[1750441535610,0.0578,2419.8,2419.6,4.13281076]
[1750441535918,0.0578,2419.8,2419.7,4.13274372]
[1750441536339,1.5243,2419.9,2419.8,4.13257293]
[1750441536504,0.0578,2420.2,2419.3,4.13342702]
[1750441536707,1.5243,2420.4,2419.5,4.13304511]
[1750441536937,1.4707,2420.9,2420.0,4.13222738]
[1750441537139,4.12744483,2422.9,2419.4,11.8349427]
[1750441537140,6.75040421,2421.4,2421.2,4.13018338]
[1750441537339,6.75040421,2421.4,2420.5,10.337]
[1750441537604,6.75040421,2421.4,2419.8,0.55]
[1750441537605,0.0578,2420.7,2419.8,4.13245534]
[1750441537812,0.0578,2421.3,2420.9,4.13068349]
[1750441538062,16.33756359,2421.1,2420.6,4.13109892]
[1750441538209,16.33756359,2421.1,2419.9,4.13240216]
[1750441538541,16.33756359,2421.1,2419.7,0.7]
[1750441538542,10.0578,2421.0,2419.7,0.7]
[1750441538709,0.0578,2420.2,2419.8,4.13246003]
[1750441538906,0.0078,2420.5,2419.7,0.7]
[1750441539107,1.4231,2420.6,2419.7,0.7]
[1750441539835,4.13165273,2420.4,2419.8,4.17379107]
[1750441540010,11.4231,2420.6,2419.7,0.7]
[1750441540209,1.4173,2421.3,2419.7,0.7]
[1750441540412,1.4173,2421.3,2420.3,4.1317192]
[1750441540675,1.4173,2421.3,2420.4,4.1315485]
[1750441540947,16.39536359,2421.1,2420.2,4.13188992]
[1750441541117,1.4173,2421.3,2420.4,4.1315485]
[1750441541320,1.4173,2421.3,2420.2,4.13188992]
[1750441541530,1.4173,2421.3,2421.2,4.13018338]
[1750441541715,5.27970421,2421.4,2421.3,4.1300128]
[1750441542107,5.27970421,2421.4,2421.3,3.46537614]
[1750441542841,5.27970421,2421.4,2421.3,4.1300128]
[1750441543006,5.33750421,2421.4,2421.0,4.13043913]
[1750441543203,5.33750421,2421.4,2420.0,14.46722201]
[1750441543204,0.0578,2421.3,2420.1,12.212]
[1750441543509,0.0578,2421.3,2420.9,4.13058697]
[1750441543709,0.0578,2421.3,2420.1,4.13206065]
[1750441543936,0.0578,2421.3,2420.3,4.13162467]
[1750441544114,4.13044173,2421.1,2420.5,4.13127755]
[1750441544311,0.0578,2421.1,2420.6,4.13112298]
[1750441544550,2.27242569,2421.1,2420.0,10.335]
[1750441544844,12.21462569,2421.1,2420.5,4.13131816]
[1750441545046,12.21462569,2421.1,2420.4,4.13149622]
[1750441545047,10.0,2420.7,2420.4,4.13149622]
[1750441545219,2.21462569,2421.1,2420.6,4.131052]
[1750441545420,4.18885603,2420.7,2419.7,4.78262029]
[1750441545627,0.0578,2420.7,2419.7,4.78264697]
[1750441545821,10.0,2420.3,2419.7,0.65]
[1750441546035,10.0,2420.3,2419.0,10.333]
[1750441546036,1.6207,2420.3,2419.0,10.333]
[1750441546219,1.6295,2420.6,2419.3,4.13335646]
[1750441546419,1.6295,2420.6,2419.3,4.13342702]
[1750441546638,1.6295,2420.6,2420.2,4.13177361]
[1750441546830,2.517,2420.5,2420.3,4.13157274]
[1750441547030,0.0578,2420.4,2419.8,4.1324887]
[1750441547233,4.18926752,2420.5,2419.2,4.13359788]
[1750441547432,0.58187675,2420.4,2419.9,4.13231818]
[1750441547630,0.0578,2420.3,2420.2,4.13188992]
[1750441547834,1.6295,2420.6,2420.5,4.13137781]
[1750441548228,1.6873,2420.6,2420.0,4.13209248]
[1750441548426,1.6295,2420.6,2420.1,4.13193727]
[1750441548756,0.0578,2420.4,2419.5,4.17427826]
[1750441548966,0.0578,2420.4,2419.3,4.13342702]
[1750441549261,0.0578,2420.4,2418.8,13.7786]
[1750441549262,0.0578,2421.2,2420.3,4.13166715]
[1750441549552,0.0578,2421.1,2420.2,4.13186628]
[1750441549847,0.0578,2421.1,2420.9,4.13064714]
[1750441550053,9.40964264,2421.4,2420.7,4.13086627]
[1750441550054,0.0578,2421.2,2420.7,4.13086627]
[1750441550224,0.0578,2420.8,2419.8,10.333]
[1750441550427,0.55,2420.7,2419.6,4.1328421]
[1750441550637,0.55,2420.7,2420.2,4.13176828]
[1750441550638,0.0578,2420.6,2420.2,4.13176828]
[1750441550845,0.0578,2420.6,2419.5,4.13308534]
[1750441550846,10.0,2421.0,2419.2,5.69209788]
[1750441551051,0.0578,2420.7,2420.1,4.13194705]
[1750441551231,10.0578,2420.2,2419.7,4.13272216]
[1750441551415,0.6078,2420.1,2418.7,1.5585]
[1750441551620,0.55,2419.9,2418.8,4.13428146]
[1750441551818,11.47398021,2420.0,2418.6,10.333]
[1750441551819,0.0578,2419.8,2419.7,4.13274372]
[1750441552075,0.0578,2419.8,2418.7,4.13443815]
[1750441552247,11.5786,2419.6,2418.7,4.13441836]
[1750441552572,1.6364,2419.6,2419.0,4.1338073]
[1750441552855,1.6364,2419.6,2418.8,0.04133567]
[1750441552856,0.6078,2419.5,2418.9,0.7]
[1750441553020,1.6364,2419.6,2419.0,4.17527781]
[1750441553220,0.0578,2419.5,2419.3,4.13330898]
[1750441553462,1.5786,2419.6,2418.9,0.7]
[1750441553463,1.5786,2419.6,2419.2,4.13351897]
[1750441553755,0.0578,2419.1,2418.9,0.7]
[1750441554154,0.0578,2419.1,2418.8,4.13418837]
[1750441554363,0.0578,2419.1,2418.7,4.13439245]
[1750441554535,0.0578,2419.1,2418.6,10.333]
[1750441555044,0.55,2419.5,2419.0,4.13392691]
[1750441555256,12.165,2420.1,2419.0,4.13392691]
[1750441555257,1.5791,2420.0,2419.4,4.133226]
[1750441555434,0.0601,2419.9,2418.8,1.5148]
[1750441555836,1.4918,2419.0,2417.8,1.5148]
[1750441556042,1.5519,2419.0,2418.3,4.13496563]
[1750441556355,1.5519,2419.0,2417.6,4.13622877]
[1750441556356,0.0601,2418.8,2417.6,4.13633355]
[1750441556522,0.0601,2418.8,2417.7,0.41863336]
[1750441556722,0.55,2418.6,2417.4,1.5634]
[1750441556960,10.0601,2418.7,2418.2,4.13522397]
[1750441557145,5.76464793,2418.4,2417.0,10.334]
[1750441557347,1.6296,2418.4,2417.0,10.334]
[1750441557519,0.55,2418.3,2417.1,4.13718919]
[1750441557738,1.5952,2418.0,2417.0,10.334]
[1750441557926,5.73094783,2418.0,2417.0,14.47133359]
[1750441558122,10.0,2417.8,2417.0,10.334]
[1750441558336,4.13652219,2417.5,2416.9,4.13738512]
[1750441558663,4.13652219,2417.5,2416.0,10.74638506]
[1750441558664,4.13672571,2417.4,2416.5,0.04137208]
[1750441558835,0.55,2417.5,2416.5,4.13807259]
[1750441559159,1.515,2416.9,2416.0,14.47394578]
[1750441559366,1.515,2416.9,2416.5,4.13812425]
[1750441559566,1.515,2416.9,2416.2,4.13861377]
[1750441559567,10.0,2416.8,2416.2,4.13861377]
[1750441559868,10.0,2416.8,2415.6,4.13975823]
[1750441560036,14.68780193,2416.8,2416.2,4.1385865]
[1750441560355,11.5394,2416.5,2415.6,4.18100573]
[1750441560524,0.55,2416.4,2415.6,4.13973849]
[1750441560735,4.68876579,2416.2,2415.3,10.338]
[1750441560946,4.13935409,2415.9,2415.3,10.338]
[1750441561169,4.68912888,2416.0,2415.4,4.14009236]
[1750441561372,1.5987,2416.1,2414.8,4.1411297]
[1750441561572,1.5987,2416.1,2414.4,10.3972]
[1750441561573,0.0601,2417.3,2415.9,0.0592]
[1750441561775,16.39766359,2417.3,2415.7,1.4806]
[1750441562070,1.79895636,2417.2,2415.7,1.4806]
[1750441562292,1.5731,2417.8,2416.5,4.13821642]
[1750441562436,1.5731,2417.8,2417.6,4.13629295]
[1750441562634,1.5231,2417.8,2416.9,0.04136399]
[1750441562836,1.5231,2417.8,2417.4,4.13656065]
[1750441563076,1.5231,2417.8,2416.8,10.4012]
[1750441563271,1.5231,2417.8,2416.8,10.342]
[1750441563474,16.33756359,2417.5,2415.9,12.415]
[1750441563678,10.55,2417.0,2415.9,0.5]
[1750441563864,0.0601,2417.4,2416.0,4.18045742]
[1750441564062,0.55,2417.3,2415.9,0.5]
[1750441564263,10.55,2417.1,2416.4,4.13835361]
[1750441564494,10.55,2417.1,2415.9,0.5]
[1750441564495,0.55,2416.8,2415.9,0.5]
[1750441564641,10.55,2416.8,2416.1,4.13883711]
[1750441564840,10.55,2416.8,2416.2,4.13861047]
[1750441564841,0.55,2416.8,2416.2,4.13861047]
[1750441565137,10.55,2416.6,2416.1,4.13879612]
[1750441565465,0.55,2416.2,2415.9,0.5]
[1750441565773,10.0,2416.5,2414.2,4.14211758]
[1750441565774,0.55,2415.7,2414.3,10.4032]
[1750441565992,0.0601,2415.3,2414.9,4.14084238]
[1750441566143,0.0601,2414.9,2414.7,4.14126509]
[1750441566337,10.0601,2415.1,2414.7,4.14120974]
[1750441566537,0.0601,2414.8,2414.5,4.14154805]
[1750441566784,0.55,2414.7,2414.4,4.14172357]
[1750441566985,10.6101,2414.8,2413.5,0.0592]
[1750441567291,10.6101,2414.8,2413.9,4.14253444]
[1750441567292,10.0,2414.6,2413.9,4.14253444]
[1750441567577,4.14215078,2414.3,2413.1,4.14404707]
[1750441567748,10.0601,2414.1,2412.6,5.89180566]
[1750441567950,0.0601,2414.3,2412.6,1.74696034]
[1750441568161,1.5483,2413.9,2412.6,0.21626034]
[1750441568364,1.5483,2413.9,2413.7,4.14301694]
[1750441568571,0.0601,2413.8,2412.9,4.14439056]
[1750441568743,1.6084,2413.9,2412.6,0.21626034]
[1750441568937,0.0601,2413.1,2412.6,0.21626034]
[1750441569239,10.0601,2412.7,2412.6,0.21626034]
[1750441569462,0.55,2412.6,2412.0,0.2364455]
[1750441569634,16.33756359,2412.8,2412.0,0.2364455]
[1750441569635,5.69384715,2412.3,2412.0,0.2364455]
[1750441569839,0.55,2412.2,2412.0,0.2364455]
[1750441570049,10.0,2412.2,2412.0,0.2364455]
[1750441570248,1.5483,2412.3,2412.2,4.14559323]
[1750441570642,0.55,2413.0,2412.7,4.14467366]
[1750441570843,0.55,2412.7,2412.2,0.85279695]
[1750441571038,0.0601,2412.3,2412.0,0.2364455]
[1750441571279,0.55,2412.1,2412.0,0.2364455]
[1750441571477,0.6101,2412.1,2412.0,0.2364455]
[1750441571675,26.94766359,2412.1,2412.0,0.2364455]
[1750441571860,26.94766359,2412.1,2410.4,10.355]
[1750441571861,16.24437321,2412.0,2410.8,4.1478608]
[1750441572067,1.5483,2412.0,2410.4,10.355]
[1750441572277,0.55,2411.9,2410.8,4.14800066]
[1750441572478,1.5475,2412.5,2411.4,0.0592]
[1750441572853,1.5475,2412.5,2411.4,0.42062582]
[1750441573095,1.5475,2412.5,2410.9,1.7175]
[1750441573259,0.6076,2412.5,2410.9,1.7175]
[1750441573583,4.14545666,2412.3,2410.9,5.86529335]
[1750441573885,0.55,2412.3,2411.1,4.14748455]
[1750441574046,0.6076,2412.5,2411.1,0.0592]
[1750441574248,0.55,2412.4,2411.2,4.14731254]
[1750441574449,0.55,2412.4,2411.9,4.14609089]
[1750441574678,0.55,2412.4,2412.1,4.14564642]
[1750441575075,0.55,2412.4,2411.5,4.14679659]
[1750441575280,4.14432257,2413.0,2412.3,4.14538972]
[1750441575447,4.14432257,2413.0,2412.4,4.14524498]
[1750441575647,20.5295054,2413.3,2412.5,4.14506693]
[1750441575952,4.14354241,2413.4,2412.7,4.14458375]
[1750441576284,1.5925,2412.9,2412.5,4.14506905]
[1750441576598,1.5925,2412.9,2411.9,4.14610887]
[1750441576797,1.5925,2412.9,2412.7,4.14461919]
[1750441577083,1.5925,2412.9,2412.7,4.14464883]
[1750441577597,1.5925,2412.9,2412.8,4.14456233]
[1750441577970,1.5925,2413.6,2412.8,4.14456233]
[1750441578290,1.5925,2413.6,2413.3,4.14370057]
[1750441578612,1.5925,2413.6,2413.5,4.14336026]
[1750441578903,1.5925,2414.5,2413.7,4.14301689]
[1750441579051,1.5925,2414.5,2413.5,0.8878865]
[1750441579052,10.0,2414.4,2413.9,4.14264743]
[1750441579259,10.0,2414.4,2414.0,4.14248156]
[1750441579455,0.35031257,2414.3,2414.0,4.14248156]
[1750441579661,0.35031257,2414.3,2413.7,4.14299675]
[1750441579870,0.35031257,2414.3,2413.5,0.0592]
[1750441580078,0.35031257,2414.3,2414.1,4.14225151]
[1750441580289,0.35031257,2414.3,2414.2,4.14215889]
[1750441581150,0.35031257,2414.3,2414.2,4.20135889]
[1750441581394,1.6367,2415.7,2415.6,4.13975823]
[1750441581605,0.28775091,2415.7,2415.6,4.13975823]
[1750441581761,0.28775091,2415.7,2415.6,4.24035429]
[1750441582076,0.24605091,2415.7,2415.6,4.24035429]
[1750441582281,0.24605091,2415.7,2415.6,5.27771654]
[1750441582463,1.6968,2416.9,2416.5,4.13819452]
[1750441582668,30.0,2416.7,2415.5,4.13982675]
[1750441582982,0.0601,2416.0,2415.5,4.13982818]
[1750441583183,0.0601,2416.0,2415.4,4.1400335]
[1750441583367,0.0601,2416.0,2415.5,4.13976023]
[1750441583571,0.0601,2415.7,2414.4,10.361]
[1750441583770,0.0601,2415.1,2413.4,0.035]
[1750441583968,0.55,2415.0,2414.5,4.14151623]
[1750441584184,0.55,2415.3,2413.8,0.04141775]
[1750441584372,1.6661,2415.5,2414.3,1.5372]
[1750441584670,1.7262,2416.1,2415.9,4.13912636]
[1750441584853,1.7262,2416.1,2414.8,4.14105168]
[1750441584854,1.7262,2416.1,2415.8,4.13937303]
[1750441585059,1.7262,2416.1,2415.9,4.1392402]
[1750441585258,1.6661,2416.1,2416.0,4.13907284]
[1750441585482,1.6661,2416.1,2415.2,4.14044385]
[1750441585693,1.6661,2416.1,2415.3,0.41404438]
[1750441585891,1.6661,2416.1,2415.4,4.14010101]
[1750441586094,1.6661,2416.1,2415.8,4.1393024]
[1750441586282,1.7278,2416.1,2415.3,0.41404438]
[1750441586468,1.7278,2416.1,2414.4,10.358]
[1750441586469,0.55,2415.4,2414.4,10.358]
[1750441586795,0.6117,2415.4,2414.4,10.358]
[1750441587114,0.6117,2415.2,2414.4,10.358]
[1750441587313,0.55,2415.0,2414.6,4.14146302]
[1750441587628,0.6117,2414.8,2414.4,10.358]
[1750441587790,0.6117,2414.8,2413.8,5.66499354]
[1750441587791,0.55,2414.4,2413.4,4.14338984]
[1750441587977,1.5359,2416.0,2415.9,4.13924417]
[1750441588181,1.5359,2416.0,2414.1,1.5977]
[1750441588182,1.5359,2416.7,2415.7,0.035]
[1750441588378,1.5976,2416.7,2415.7,0.04139346]
[1750441588600,1.5976,2416.7,2415.6,10.356]
[1750441588601,4.13805709,2416.6,2415.9,4.13907356]
[1750441588901,3.39111636,2416.7,2415.1,1.5977]
[1750441588902,0.0617,2416.3,2415.1,1.5977]
[1750441589104,0.0617,2416.3,2414.7,14.49723938]
[1750441589105,0.55,2416.2,2415.8,4.13929438]
[1750441589289,0.55,2416.0,2415.5,4.13978225]
[1750441589494,0.0617,2416.6,2415.8,4.1393]
[1750441589721,10.0,2415.9,2414.7,14.49713177]
[1750441589914,0.55,2415.7,2415.2,4.14035442]
[1750441590081,0.55,2415.8,2414.7,10.356]
[1750441590282,0.55,2415.8,2414.9,0.5]
[1750441590493,0.6117,2415.8,2415.5,4.13983528]
[1750441591124,0.6117,2415.8,2414.9,0.5]
[1750441591341,10.0,2415.7,2415.1,4.14051885]
[1750441591481,0.55,2415.6,2414.9,0.5]
[1750441591683,2.0572,2415.4,2414.9,4.64086607]
[1750441591980,0.55,2415.1,2414.9,0.5]
[1750441592186,0.0617,2415.2,2415.0,4.14078657]
[1750441592380,1.5072,2415.4,2414.9,0.5]
[1750441592681,1.5072,2415.4,2415.2,4.14044385]
[1750441592896,1.5072,2415.4,2414.9,0.5]
[1750441592897,1.5072,2415.8,2415.0,4.14068585]
[1750441593098,1.5072,2415.8,2415.6,4.13975615]
[1750441593418,0.0617,2418.6,2415.9,0.035]
[1750441593717,0.0617,2418.6,2417.5,4.13636415]
[1750441593718,4.14039297,2418.2,2417.5,4.13636415]
[1750441593920,0.005,2418.2,2416.9,10.0]
[1750441594123,0.005,2418.2,2416.8,10.355]
[1750441594294,0.0617,2418.1,2416.9,4.13753154]
[1750441594491,0.005,2418.2,2418.0,4.13564481]
[1750441594700,0.005,2418.2,2417.1,4.13718919]
[1750441595026,4.13567993,2418.0,2417.3,4.13677851]
[1750441595205,4.13562072,2418.1,2417.4,4.13665626]
[1750441595400,4.13562072,2418.1,2417.2,4.13700801]
[1750441595401,14.13548917,2418.1,2417.2,4.13701232]
[1750441595606,1.42021892,2418.0,2416.8,10.355]
[1750441595929,4.20214,2418.2,2417.5,4.13647326]
[1750441596133,4.20214,2418.2,2417.0,4.13736036]
[1750441596337,1.6448,2418.1,2417.5,4.13637905]
[1750441596623,10.0,2417.8,2416.8,10.355]
[1750441596824,10.0,2417.8,2417.0,4.13724761]
[1750441596825,10.55,2417.6,2417.0,4.13724761]
[1750441597128,0.55,2417.6,2417.4,4.13654975]
[1750441597299,10.55,2418.0,2417.3,4.13678675]
[1750441597694,0.55,2417.8,2416.8,10.355]
[1750441598013,1.7065,2418.1,2417.0,4.13736036]
[1750441598214,1.7065,2418.1,2417.7,4.13599614]
[1750441598420,1.7065,2418.1,2416.8,11.4222]
[1750441598421,0.0617,2418.0,2417.3,0.04136333]
[1750441598727,0.55,2417.4,2415.9,4.13924417]
[1750441598907,0.55,2417.4,2416.0,0.04137877]
[1750441599249,0.55,2417.4,2415.9,0.0317]
[1750441599250,0.55,2417.1,2415.9,4.13924417]
[1750441599451,0.55,2416.6,2415.8,1.6326]
[1750441599744,2.1436,2416.6,2415.9,4.13907361]
[1750441600036,0.6117,2416.1,2415.1,10.35]
[1750441600194,0.6117,2416.1,2415.2,0.34563705]
[1750441600529,0.55,2415.5,2415.2,0.34563705]
[1750441600699,0.55,2415.5,2415.3,0.5]
[1750441600894,0.55,2415.5,2415.2,0.34563705]
[1750441601099,0.6117,2415.5,2415.3,0.34562274]
[1750441601726,0.0617,2415.4,2415.3,0.34562274]
[1750441601892,10.6117,2415.4,2415.3,0.34562274]
[1750441602098,10.55,2415.4,2415.3,0.34562274]
[1750441602807,10.6117,2415.4,2415.3,0.34562274]
[1750441603001,10.55,2415.3,2414.7,4.14126184]
[1750441603355,0.0617,2415.3,2414.7,0.34570862]
[1750441603528,0.0617,2415.3,2414.7,4.48686629]
[1750441603834,0.55,2414.8,2414.3,4.14198289]
[1750441604042,0.55,2414.6,2414.1,4.14218527]
[1750441604236,10.55,2414.4,2413.7,4.14288987]
[1750441604536,1.6332,2414.7,2413.1,20.351]
[1750441604735,1.6332,2414.7,2413.7,5.73861694]
[1750441605036,0.55,2414.6,2413.6,4.14318859]
[1750441605238,0.55,2414.6,2414.3,4.14187346]
[1750441605538,0.6117,2414.6,2414.1,4.14222248]
[1750441605700,0.55,2414.6,2414.3,4.14187419]
[1750441605897,0.55,2414.6,2414.3,4.14187914]
[1750441606099,0.55,2414.6,2413.6,0.5]
[1750441606331,0.55,2413.9,2412.8,4.14456233]
[1750441606633,0.55,2413.9,2412.6,1.6605]
[1750441606634,0.55,2413.5,2412.6,1.6605]
[1750441606836,4.14368802,2413.4,2412.6,4.14479879]
[1750441607041,0.55,2413.2,2412.8,4.144415]
[1750441607333,0.55,2413.4,2412.8,4.14448215]
[1750441607534,0.55,2413.4,2413.0,4.1441062]
[1750441607834,0.55,2413.4,2413.0,4.14404977]
[1750441608034,0.55,2413.4,2412.9,4.14429226]
[1750441608205,10.55,2413.5,2412.8,4.14448132]
[1750441608402,10.0,2412.4,2412.2,0.21602258]
[1750441608607,0.55,2412.5,2412.2,0.21602258]